fUSD/lending_fUSD_20250611
["ID","MTS","AMOUNT","RATE_DAILY","PERIOD"]
[365347238,1749612644867,-624.57,0.00016438,2]
[365347239,1749612644877,-464.12914243,0.00016438,2]
[365347241,1749612644886,-460.0,0.00016438,2]
[365347243,1749612644895,-428.89020285,0.00016438,2]
[365347245,1749612644905,-465.25481713,0.00016438,2]
[365347247,1749612644914,-460.69708637,0.00016438,2]
[365347248,1749612644923,-464.71194657,0.00016438,2]
[365347250,1749612644932,-460.0,0.00016438,2]
[365347252,1749612644941,-490.0,0.00016438,2]
[365347254,1749612644950,-490.0,0.00016438,2]
[365347255,1749612644959,-460.0,0.00016438,2]
[365347257,1749612644968,-490.0,0.00016438,2]
[365347259,1749612644977,-490.0,0.00016438,2]
[365347261,1749612644986,-460.0,0.00016438,2]
[365347262,1749612644997,-460.0,0.00016438,2]
[365347264,1749612645007,-478.47792004,0.00016438,2]
[365347266,1749612645016,-490.0,0.00016438,2]
[365347268,1749612645025,-460.0,0.00016438,2]
[365347270,1749612645034,-490.0,0.00016438,2]
[365347272,1749612645043,-460.0,0.00016438,2]
[365347274,1749612645053,-490.0,0.00016438,2]
[365347276,1749612645062,-490.0,0.00016438,2]
[365347278,1749612645071,-540.78,0.00016438,2]
[365347280,1749612645081,-467.89195809,0.00016438,2]
[365347282,1749612645090,-460.0,0.00016438,2]
[365347284,1749612645099,-619.63,0.00016438,2]
[365347286,1749612645108,-633.86542084,0.00016438,2]
[365347288,1749612645117,-467.44493328,0.00016438,2]
[365347290,1749612645126,-462.78803775,0.00016438,2]
[365347292,1749612645136,-467.0385982,0.00016438,2]
[365347294,1749612645145,-460.0,0.00016438,2]
[365347296,1749612645154,-463.86170798,0.00016438,2]
[365347297,1749612645163,-528.10866872,0.00016438,2]
[365347299,1749612645172,-490.0,0.00016438,2]
[365347301,1749612645182,-460.0,0.00016438,2]
[365347303,1749612645191,-490.0,0.00016438,2]
[365347305,1749612645200,-460.0,0.00016438,2]
[365347307,1749612645210,-490.0,0.00016438,2]
[365347309,1749612645219,-467.29,0.00016438,2]
[365347311,1749612645229,-463.15715267,0.00016438,2]
[365347313,1749612645240,-490.0,0.00016438,2]
[365347315,1749612645252,-460.0,0.00016438,2]
[365347317,1749612645261,-464.25278281,0.00016438,2]
[365347318,1749612645274,-490.0,0.00016438,2]
[365347319,1749612645283,-460.0,0.00016438,2]
[365347320,1749612645292,-490.0,0.00016438,2]
[365347321,1749612645301,-490.0,0.00016438,2]
[365347322,1749612645310,-461.51797319,0.00016438,2]
[365347323,1749612645319,-490.0,0.00016438,2]
[365347324,1749612645328,-465.84304726,0.00016438,2]
[365347325,1749612645337,-490.0,0.00016438,2]
[365347326,1749612645347,-460.84111646,0.00016438,2]
[365347327,1749612645356,-460.0,0.00016438,2]
[365347328,1749612645365,-460.0,0.00016438,2]
[365347329,1749612645374,-460.0,0.00016438,2]
[365347330,1749612645383,-541.82023133,0.00016438,2]
[365347331,1749612645391,-461.47467818,0.00016438,2]
[365347332,1749612645400,-490.0,0.00016438,2]
[365347333,1749612645409,-460.0,0.00016438,2]
[365347334,1749612645418,-460.0,0.00016438,2]
[365347335,1749612645427,-460.0,0.00016438,2]
[365347336,1749612645436,-460.0,0.00016438,2]
[365347338,1749612645446,-460.0,0.00016438,2]
[365347340,1749612645455,-490.0,0.00016438,2]
[365347342,1749612645464,-460.0,0.00016438,2]
[365347344,1749612645474,-460.0,0.00016438,2]
[365347346,1749612645484,-460.0,0.00016438,2]
[365347348,1749612645493,-460.0,0.00016438,2]
[365347350,1749612645503,-599.09436241,0.00016438,2]
[365347352,1749612645512,-466.79677948,0.00016438,2]
[365347354,1749612645522,-460.0,0.00016438,2]
[365347356,1749612645531,-460.0,0.00016438,2]
[365347358,1749612645540,-460.0,0.00016438,2]
[365347360,1749612645549,-467.77647435,0.00016438,2]
[365347362,1749612645559,-301.64895126,0.00016438,2]
[365347364,1749612645569,-446.64279035,0.00016438,2]
[365347365,1749612645578,-460.0,0.00016438,2]
[365347368,1749612645588,-476.01,0.00016438,2]
[365347370,1749612645597,-462.89865432,0.00016438,2]
[365347372,1749612645606,-460.0,0.00016438,2]
[365347373,1749612645615,-490.0,0.00016438,2]
[365347375,1749612645624,-461.12820531,0.00016438,2]
[365347377,1749612645633,-490.0,0.00016438,2]
[365347379,1749612645642,-460.0,0.00016438,2]
[365347381,1749612645651,-490.0,0.00016438,2]
[365347383,1749612645660,-460.0,0.00016438,2]
[365347385,1749612645669,-460.0,0.00016438,2]
[365347387,1749612645678,-460.0,0.00016438,2]
[365347389,1749612645687,-460.0,0.00016438,2]
[365347391,1749612645697,-472.44405329,0.00016438,2]
[365347393,1749612645706,-462.80471985,0.00016438,2]
[365347395,1749612645715,-463.45413926,0.00016438,2]
[365347397,1749612645725,-490.0,0.00016438,2]
[365347399,1749612645735,-420.0,0.00016438,2]
[365347401,1749612645747,-588.0,0.00016438,2]
[365347403,1749612645756,-460.0,0.00016438,2]
[365347405,1749612645766,-460.0,0.00016438,2]
[365347408,1749612645775,-460.0,0.00016438,2]
[365347410,1749612645784,-460.0,0.00016438,2]
[365347413,1749612645793,-460.0,0.00016438,2]
[365347415,1749612645802,-490.0,0.00016438,2]
[365347418,1749612645811,-460.0,0.00016438,2]
[365347421,1749612645821,-508.35,0.00016438,2]
[365347424,1749612645830,-468.81,0.00016438,2]
[365347428,1749612645840,-343.6943801,0.00016438,2]
[365347430,1749612645849,-557.19,0.00016438,2]
[365347433,1749612645859,-460.0,0.00016438,2]
[365347436,1749612645869,-460.0,0.00016438,2]
[365347439,1749612645878,-460.0,0.00016438,2]
[365347442,1749612645887,-380.0,0.00016438,2]
[365347445,1749612645897,-460.0,0.00016438,2]
[365347448,1749612645908,-460.0,0.00016438,2]
[365347451,1749612645918,-462.32812142,0.00016438,2]
[365347454,1749612645928,-460.0,0.00016438,2]
[365347457,1749612645937,-490.0,0.00016438,2]
[365347460,1749612645946,-206.53441249,0.00016438,2]
[365347463,1749612645956,-490.0,0.00016438,2]
[365347466,1749612645965,-460.0,0.00016438,2]
[365347469,1749612645975,-490.0,0.00016438,2]
[365347471,1749612645983,-460.0,0.00016438,2]
[365347473,1749612645994,-460.0,0.00016438,2]
[365347475,1749612646003,-461.89714367,0.00016438,2]
[365347477,1749612646013,-460.0,0.00016438,2]
[365347479,1749612646023,-490.0,0.00016438,2]
[365347481,1749612646032,-460.0,0.00016438,2]
[365347483,1749612646041,-490.0,0.00016438,2]
[365347485,1749612646050,-460.0,0.00016438,2]
[365347487,1749612646060,-460.0,0.00016438,2]
[365347489,1749612646069,-423.60682887,0.00016438,2]
[365347491,1749612646078,-490.0,0.00016438,2]
[365347493,1749612646087,-490.0,0.00016438,2]
[365347495,1749612646096,-460.0,0.00016438,2]
[365347497,1749612646105,-490.0,0.00016438,2]
[365347500,1749612646122,-460.0,0.00016438,2]
[365347502,1749612646132,-460.0,0.00016438,2]
[365347504,1749612646141,-490.0,0.00016438,2]
[365347506,1749612646150,-460.0,0.00016438,2]
[365347508,1749612646159,-490.0,0.00016438,2]
[365347510,1749612646168,-426.33332292,0.00016438,2]
[365347512,1749612646177,-461.87693153,0.00016438,2]
[365347514,1749612646187,-460.0,0.00016438,2]
[365347516,1749612646196,-460.0,0.00016438,2]
[365347518,1749612646205,-458.72090936,0.00016438,2]
[365347520,1749612646214,-456.34320295,0.00016438,2]
[365347522,1749612646223,-460.0,0.00016438,2]
[365347524,1749612646236,-429.31573169,0.00016438,2]
[365347526,1749612646247,-460.0,0.00016438,2]
[365347528,1749612646257,-490.0,0.00016438,2]
[365347530,1749612646270,-460.0,0.00016438,2]
[365347532,1749612646279,-460.0,0.00016438,2]
[365347534,1749612646289,-530.03,0.00016438,2]
[365347536,1749612646298,-490.0,0.00016438,2]
[365347538,1749612646306,-460.0,0.00016438,2]
[365347540,1749612646315,-468.16089025,0.00016438,2]
[365347542,1749612646325,-460.0,0.00016438,2]
[365347544,1749612646334,-463.34981449,0.00016438,2]
[365347546,1749612646346,-460.0,0.00016438,2]
[365347548,1749612646356,-460.0,0.00016438,2]
[365347550,1749612646365,-463.23700328,0.00016438,2]
[365347552,1749612646374,-490.0,0.00016438,2]
[365347554,1749612646383,-490.0,0.00016438,2]
[365347556,1749612646392,-460.0,0.00016438,2]
[365347558,1749612646402,-460.0,0.00016438,2]
[365347560,1749612646411,-460.0,0.00016438,2]
[365347562,1749612646420,-460.0,0.00016438,2]
[365347564,1749612646430,-460.0,0.00016438,2]
[365347566,1749612646439,-461.42224674,0.00016438,2]
[365347568,1749612646448,-460.0,0.00016438,2]
[365347570,1749612646457,-460.0,0.00016438,2]
[365347572,1749612646467,-435.5677169,0.00016438,2]
[365347574,1749612646477,-464.69534746,0.00016438,2]
[365347576,1749612646486,-612.19,0.00016438,2]
[365347578,1749612646497,-490.0,0.00016438,2]
[365347580,1749612646506,-461.28121119,0.00016438,2]
[365347582,1749612646515,-380.23327397,0.00016438,2]
[365347584,1749612646524,-562.33765772,0.00016438,2]
[365347586,1749612646533,-460.0,0.00016438,2]
[365347588,1749612646542,-460.0,0.00016438,2]
[365347590,1749612646551,-460.0,0.00016438,2]
[365347592,1749612646561,-220.0,0.00016438,2]
[365347594,1749612646570,-490.0,0.00016438,2]
[365347596,1749612646579,-466.43114952,0.00016438,2]
[365347598,1749612646588,-259.55024223,0.00016438,2]
[365347600,1749612646597,-460.0,0.00016438,2]
[365347602,1749612646606,-460.0,0.00016438,2]
[365347604,1749612646616,-460.0,0.00016438,2]
[365347606,1749612646625,-490.0,0.00016438,2]
[365347608,1749612646634,-462.23054232,0.00016438,2]
[365347610,1749612646643,-461.55579527,0.00016438,2]
[365347612,1749612646652,-460.0,0.00016438,2]
[365347614,1749612646661,-490.0,0.00016438,2]
[365347616,1749612646671,-465.87718287,0.00016438,2]
[365347618,1749612646681,-470.35781617,0.00016438,2]
[365347620,1749612646690,-460.0,0.00016438,2]
[365347622,1749612646700,-460.0,0.00016438,2]
[365347624,1749612646709,-460.0,0.00016438,2]
[365347627,1749612646719,-460.0,0.00016438,2]
[365347628,1749612646728,-490.0,0.00016438,2]
[365347631,1749612646737,-463.04738266,0.00016438,2]
[365347633,1749612646749,-461.87066179,0.00016438,2]
[365347634,1749612646758,-490.0,0.00016438,2]
[365347636,1749612646768,-463.02584359,0.00016438,2]
[365347639,1749612646777,-459.43126242,0.00016438,2]
[365347641,1749612646787,-463.39287058,0.00016438,2]
[365347643,1749612646796,-460.0,0.00016438,2]
[365347644,1749612646805,-460.0,0.00016438,2]
[365347646,1749612646815,-460.0,0.00016438,2]
[365347649,1749612646826,-460.0,0.00016438,2]
[365347651,1749612646835,-490.0,0.00016438,2]
[365347652,1749612646845,-490.0,0.00016438,2]
[365347654,1749612646854,-177.85893089,0.00016438,2]
[365347656,1749612646863,-460.0,0.00016438,2]
[365347659,1749612646873,-490.0,0.00016438,2]
[365347660,1749612646882,-275.15771822,0.00016438,2]
[365347663,1749612646891,-460.0,0.00016438,2]
[365347664,1749612646900,-460.0,0.00016438,2]
[365347667,1749612646910,-461.36331293,0.00016438,2]
[365347668,1749612646919,-460.0,0.00016438,2]
[365347670,1749612646928,-462.34888137,0.00016438,2]
[365347673,1749612646938,-460.0,0.00016438,2]
[365347675,1749612646947,-460.88971923,0.00016438,2]
[365347677,1749612646956,-460.0,0.00016438,2]
[365347678,1749612646965,-460.0,0.00016438,2]
[365347681,1749612646975,-462.70805374,0.00016438,2]
[365347683,1749612646985,-460.0,0.00016438,2]
[365347684,1749612646997,-462.9977614,0.00016438,2]
[365347687,1749612647007,-463.08390358,0.00016438,2]
[365347689,1749612647016,-461.8652254,0.00016438,2]
[365347690,1749612647025,-462.00241102,0.00016438,2]
[365347693,1749612647035,-460.0,0.00016438,2]
[365347694,1749612647044,-460.0,0.00016438,2]
[365347696,1749612647053,-461.70836482,0.00016438,2]
[365347698,1749612647063,-460.0,0.00016438,2]
[365347700,1749612647072,-463.52695177,0.00016438,2]
[365347702,1749612647081,-490.0,0.00016438,2]
[365347704,1749612647091,-460.0,0.00016438,2]
[365347706,1749612647100,-400.02702553,0.00016438,2]
[365347708,1749612647110,-460.0,0.00016438,2]
[365347710,1749612647119,-460.0,0.00016438,2]
[365347712,1749612647128,-460.0,0.00016438,2]
[365347714,1749612647138,-463.64603829,0.00016438,2]
[365347716,1749612647147,-461.72716721,0.00016438,2]
[365347718,1749612647157,-460.0,0.00016438,2]
[365347720,1749612647166,-424.65583225,0.00016438,2]
[365347722,1749612647176,-460.0,0.00016438,2]
[365347724,1749612647185,-460.0,0.00016438,2]
[365347726,1749612647194,-460.0,0.00016438,2]
[365347728,1749612647204,-490.0,0.00016438,2]
[365347730,1749612647213,-490.0,0.00016438,2]
[365347732,1749612647222,-356.58286058,0.00016438,2]
[365347734,1749612647232,-460.0,0.00016438,2]
[365347736,1749612647241,-460.0,0.00016438,2]
[365347738,1749612647250,-490.0,0.00016438,2]
[365347740,1749612647260,-1000.0,0.00016438,2]
[365347742,1749612647274,-460.0,0.00016438,2]
[365347744,1749612647284,-428.39136601,0.00016438,2]
[365347746,1749612647293,-490.0,0.00016438,2]
[365347748,1749612647302,-464.24601428,0.00016438,2]
[365347750,1749612647313,-460.0,0.00016438,2]
[365347752,1749612647322,-460.0,0.00016438,2]
[365347754,1749612647331,-462.19556949,0.00016438,2]
[365347756,1749612647341,-460.0,0.00016438,2]
[365347758,1749612647352,-565.45,0.00016438,2]
[365347760,1749612647361,-522.92812997,0.00016438,2]
[365347762,1749612647370,-424.7231268,0.00016438,2]
[365347764,1749612647381,-462.2983526,0.00016438,2]
[365347766,1749612647391,-460.0,0.00016438,2]
[365347768,1749612647400,-462.00324658,0.00016438,2]
[365347770,1749612647410,-461.27684169,0.00016438,2]
[365347772,1749612647419,-460.0,0.00016438,2]
[365347774,1749612647428,-460.0,0.00016438,2]
[365347776,1749612647437,-460.0,0.00016438,2]
[365347778,1749612647447,-467.61211302,0.00016438,2]
[365347780,1749612647457,-460.0,0.00016438,2]
[365347782,1749612647467,-462.06655684,0.00016438,2]
[365347784,1749612647476,-490.0,0.00016438,2]
[365347786,1749612647485,-208.29220658,0.00016438,2]
[365347787,1749612647496,-844.1,0.00016438,2]
[365347789,1749612647506,-462.86027045,0.00016438,2]
[365347791,1749612647516,-490.43,0.00016438,2]
[365347793,1749612647525,-460.0,0.00016438,2]
[365347795,1749612647535,-490.0,0.00016438,2]
[365347797,1749612647544,-464.31929729,0.00016438,2]
[365347799,1749612647554,-460.0,0.00016438,2]
[365347800,1749612647563,-460.0,0.00016438,2]
[365347801,1749612647573,-521.85,0.00016438,2]
[365347803,1749612647747,-460.0,0.00016438,2]
[365347804,1749612647757,-463.36170035,0.00016438,2]
[365347805,1749612647767,-460.0,0.00016438,2]
[365347806,1749612647776,-462.21360324,0.00016438,2]
[365347807,1749612647786,-500.0,0.00016438,2]
[365347808,1749612647795,-460.0,0.00016438,2]
[365347809,1749612647805,-536.89361679,0.00016438,2]
[365347811,1749612647814,-570.74,0.00016438,2]
[365347813,1749612647823,-1013.83,0.00016438,2]
[365347815,1749612647832,-384.46537426,0.00016438,2]
[365347817,1749612647841,-462.86586575,0.00016438,2]
[365347819,1749612647850,-557.63,0.00016438,2]
[365347821,1749612647860,-460.0,0.00016438,2]
[365347823,1749612647869,-490.0,0.00016438,2]
[365347825,1749612647878,-460.0,0.00016438,2]
[365347827,1749612647887,-462.7849618,0.00016438,2]
[365347829,1749612647897,-460.0,0.00016438,2]
[365347831,1749612647906,-463.04981234,0.00016438,2]
[365347833,1749612647915,-354.69319705,0.00016438,2]
[365347835,1749612647925,-460.0,0.00016438,2]
[365347837,1749612647934,-467.12578046,0.00016438,2]
[365347839,1749612647943,-490.0,0.00016438,2]
[365347841,1749612647952,-462.68084827,0.00016438,2]
[365347843,1749612647962,-300.0,0.00016438,2]
[365347845,1749612647971,-490.0,0.00016438,2]
[365347846,1749612647981,-462.22081176,0.00016438,2]
[365347847,1749612647990,-644.56,0.00016438,2]
[365347848,1749612648000,-460.0,0.00016438,2]
[365347849,1749612648009,-460.0,0.00016438,2]
[365347850,1749612648019,-460.0,0.00016438,2]
[365347851,1749612648029,-460.0,0.00016438,2]
[365347852,1749612648038,-490.0,0.00016438,2]
[365347853,1749612648048,-474.1,0.00016438,2]
[365347854,1749612648058,-490.0,0.00016438,2]
[365347855,1749612648068,-460.0,0.00016438,2]
[365347856,1749612648077,-432.16271773,0.00016438,2]
[365347857,1749612648087,-490.0,0.00016438,2]
[365347858,1749612648097,-462.90199339,0.00016438,2]
[365347859,1749612648106,-575.72,0.00016438,2]
[365347860,1749612648115,-460.0,0.00016438,2]
[365347861,1749612648125,-460.0,0.00016438,2]
[365347862,1749612648134,-460.0,0.00016438,2]
[365347863,1749612648144,-460.0,0.00016438,2]
[365347864,1749612648153,-463.26626724,0.00016438,2]
[365347865,1749612648162,-460.0,0.00016438,2]
[365347866,1749612648172,-462.19507283,0.00016438,2]
[365347867,1749612648182,-490.0,0.00016438,2]
[365347868,1749612648191,-463.26776949,0.00016438,2]
[365347869,1749612648201,-461.93795337,0.00016438,2]
[365347870,1749612648211,-493.48,0.00016438,2]
[365347871,1749612648221,-463.70217943,0.00016438,2]
[365347872,1749612648231,-490.0,0.00016438,2]
[365347873,1749612648240,-461.3087037,0.00016438,2]
[365347874,1749612648251,-490.0,0.00016438,2]
[365347875,1749612648261,-490.0,0.00016438,2]
[365347876,1749612648275,-460.0,0.00016438,2]
[365347877,1749612648285,-462.73365393,0.00016438,2]
[365347878,1749612648296,-461.39454995,0.00016438,2]
[365347879,1749612648305,-460.0,0.00016438,2]
[365347880,1749612648316,-460.44924941,0.00016438,2]
[365347881,1749612648325,-163.40039483,0.00016438,2]
[365347882,1749612648336,-460.0,0.00016438,2]
[365347883,1749612648346,-490.0,0.00016438,2]
[365347884,1749612648357,-490.0,0.00016438,2]
[365347885,1749612648366,-460.0,0.00016438,2]
[365347886,1749612648376,-461.0108434,0.00016438,2]
[365347887,1749612648386,-635.09,0.00016438,2]
[365347888,1749612648395,-460.0,0.00016438,2]
[365347889,1749612648405,-467.25747564,0.00016438,2]
[365347890,1749612648415,-490.0,0.00016438,2]
[365347891,1749612648425,-490.0,0.00016438,2]
[365347892,1749612648434,-460.0,0.00016438,2]
[365347893,1749612648444,-490.0,0.00016438,2]
[365347894,1749612648453,-461.43897711,0.00016438,2]
[365347895,1749612648463,-460.0,0.00016438,2]
[365347896,1749612648472,-460.0,0.00016438,2]
[365347897,1749612648482,-498.38,0.00016438,2]
[365347898,1749612648492,-490.0,0.00016438,2]
[365347899,1749612648502,-461.22012622,0.00016438,2]
[365347900,1749612648511,-460.0,0.00016438,2]
[365347901,1749612648521,-490.0,0.00016438,2]
[365347902,1749612648531,-490.0,0.00016438,2]
[365347903,1749612648540,-460.0,0.00016438,2]
[365347904,1749612648551,-467.01910263,0.00016438,2]
[365347905,1749612648560,-460.0,0.00016438,2]
[365347906,1749612648569,-463.94114124,0.00016438,2]
[365347907,1749612648579,-490.0,0.00016438,2]
[365347908,1749612648588,-518.5,0.00016438,2]
[365347909,1749612648597,-461.91676143,0.00016438,2]
[365347910,1749612648606,-694.54,0.00016438,2]
[365347911,1749612648615,-465.855792,0.00016438,2]
[365347912,1749612648625,-463.74425946,0.00016438,2]
[365347913,1749612648634,-529.2358466,0.00016438,2]
[365347914,1749612648643,-170.76750322,0.00016438,2]
[365347915,1749612648652,-490.0,0.00016438,2]
[365347916,1749612648662,-461.71379467,0.00016438,2]
[365347917,1749612648672,-586.77,0.00016438,2]
[365347918,1749612648681,-460.365065,0.00016438,2]
[365347919,1749612648690,-401.76609317,0.00016438,2]
[365347920,1749612648700,-628.62378849,0.00016438,2]
[365347921,1749612648709,-490.0,0.00016438,2]
[365347922,1749612648719,-464.71826834,0.00016438,2]
[365347923,1749612648728,-463.6080084,0.00016438,2]
[365347924,1749612648738,-466.83764621,0.00016438,2]
[365347925,1749612648748,-490.0,0.00016438,2]
[365347926,1749612648757,-490.0,0.00016438,2]
[365347927,1749612648767,-460.0,0.00016438,2]
[365347928,1749612648776,-516.18,0.00016438,2]
[365347929,1749612648785,-460.0,0.00016438,2]
[365347930,1749612648795,-460.0,0.00016438,2]
[365347931,1749612648804,-465.43215541,0.00016438,2]
[365347932,1749612648813,-460.0,0.00016438,2]
[365347933,1749612648823,-412.98516221,0.00016438,2]
[365347934,1749612648832,-460.0,0.00016438,2]
[365347935,1749612648841,-353.56431109,0.00016438,2]
[365347936,1749612648851,-490.0,0.00016438,2]
[365347937,1749612648860,-460.0,0.00016438,2]
[365347938,1749612648869,-423.6769377,0.00016438,2]
[365347939,1749612648879,-490.0,0.00016438,2]
[365347940,1749612648888,-460.0,0.00016438,2]
[365347941,1749612648897,-509.89437969,0.00016438,2]
[365347942,1749612648907,-490.0,0.00016438,2]
[365347943,1749612648917,-525.35421819,0.00016438,2]
[365347944,1749612648926,-460.0,0.00016438,2]
[365347945,1749612648936,-460.0,0.00016438,2]
[365347946,1749612648946,-490.0,0.00016438,2]
[365347947,1749612648955,-490.0,0.00016438,2]
[365347948,1749612648965,-430.40492315,0.00016438,2]
[365347949,1749612648975,-224.52993282,0.00016438,2]
[365347950,1749612648984,-459.20242188,0.00016438,2]
[365347951,1749612648995,-490.0,0.00016438,2]
[365347952,1749612649004,-490.0,0.00016438,2]
[365347953,1749612649013,-490.0,0.00016438,2]
[365347954,1749612649023,-490.0,0.00016438,2]
[365347955,1749612649033,-460.0,0.00016438,2]
[365347956,1749612649043,-460.0,0.00016438,2]
[365347957,1749612649052,-366.62224581,0.00016438,2]
[365347958,1749612649062,-490.0,0.00016438,2]
[365347959,1749612649072,-490.0,0.00016438,2]
[365347960,1749612649082,-323.39920861,0.00016438,2]
[365347961,1749612649091,-1010.45,0.00016438,2]
[365347962,1749612649101,-10604.56,0.00016438,2]
[365347963,1749612649111,-463.64052069,0.00016438,2]
[365347964,1749612649120,-465.87466722,0.00016438,2]
[365347965,1749612649130,-460.0,0.00016438,2]
[365347966,1749612649140,-490.0,0.00016438,2]
[365347967,1749612649150,-490.0,0.00016438,2]
[365347968,1749612649160,-460.0,0.00016438,2]
[365347969,1749612649170,-490.0,0.00016438,2]
[365347970,1749612649179,-460.0,0.00016438,2]
[365347971,1749612649189,-490.0,0.00016438,2]
[365347972,1749612649199,-463.37608306,0.00016438,2]
[365347973,1749612649209,-460.0,0.00016438,2]
[365347974,1749612649219,-490.0,0.00016438,2]
[365347975,1749612649229,-460.0,0.00016438,2]
[365347976,1749612649239,-460.0,0.00016438,2]
[365347977,1749612649250,-460.0,0.00016438,2]
[365347978,1749612649262,-490.0,0.00016438,2]
[365347979,1749612649278,-466.1523939,0.00016438,2]
[365347980,1749612649288,-460.0,0.00016438,2]
[365347981,1749612649299,-430.55441879,0.00016438,2]
[365347982,1749612649310,-230.63937342,0.00016438,2]
[365347983,1749612649320,-490.0,0.00016438,2]
[365347984,1749612649331,-460.0,0.00016438,2]
[365347985,1749612649341,-490.0,0.00016438,2]
[365347986,1749612649352,-473.33161236,0.00016438,2]
[365347987,1749612649362,-462.13063451,0.00016438,2]
[365347988,1749612649372,-380.0,0.00016438,2]
[365347989,1749612649382,-460.0,0.00016438,2]
[365347990,1749612649391,-460.0,0.00016438,2]
[365347991,1749612649401,-467.60221659,0.00016438,2]
[365347992,1749612649411,-490.0,0.00016438,2]
[365347993,1749612649420,-468.62076219,0.00016438,2]
[365347994,1749612649429,-597.67,0.00016438,2]
[365347995,1749612649439,-490.0,0.00016438,2]
[365347996,1749612649448,-490.0,0.00016438,2]
[365347997,1749612649458,-490.0,0.00016438,2]
[365347998,1749612649468,-490.0,0.00016438,2]
[365347999,1749612649478,-464.59859734,0.00016438,2]
[365348000,1749612649487,-466.58510509,0.00016438,2]
[365348001,1749612649497,-422.35625185,0.00016438,2]
[365348002,1749612649507,-743.34,0.00016438,2]
[365348003,1749612649516,-460.0,0.00016438,2]
[365348004,1749612649526,-490.0,0.00016438,2]
[365348005,1749612649535,-313.62459686,0.00016438,2]
[365348006,1749612649546,-490.0,0.00016438,2]
[365348007,1749612649555,-471.47495798,0.00016438,2]
[365348008,1749612649564,-505.78822404,0.00016438,2]
[365348009,1749612649575,-490.0,0.00016438,2]
[365348010,1749612649585,-460.0,0.00016438,2]
[365348011,1749612649594,-490.0,0.00016438,2]
[365348012,1749612649604,-490.0,0.00016438,2]
[365348013,1749612649613,-517.19390263,0.00016438,2]
[365348014,1749612649623,-464.58996284,0.00016438,2]
[365348015,1749612649633,-490.0,0.00016438,2]
[365348016,1749612649642,-327.05757316,0.00016438,2]
[365348017,1749612649677,-132.94242684,0.00016438,2]
[365348018,1749612649686,-547.73236708,0.00016438,2]
[365348019,1749612649696,-378.0,0.00016438,2]
[365348020,1749612649705,-462.6349233,0.00016438,2]
[365348021,1749612649715,-561.456712,0.00016438,2]
[365348022,1749612649725,-490.0,0.00016438,2]
[365348023,1749612649734,-490.0,0.00016438,2]
[365348024,1749612649744,-490.0,0.00016438,2]
[365348025,1749612649754,-490.0,0.00016438,2]
[365348026,1749612649764,-458.35607592,0.00016438,2]
[365348027,1749612649774,-475.39817842,0.00016438,2]
[365348028,1749612649784,-180.65800852,0.00016438,2]
[365348029,1749612649794,-490.0,0.00016438,2]
[365348030,1749612649804,-467.68888015,0.00016438,2]
[365348031,1749612649814,-490.0,0.00016438,2]
[365348032,1749612649824,-350.62759608,0.00016438,2]
[365348033,1749612649833,-1121.03,0.00016438,2]
[365348034,1749612649843,-510.33209378,0.00016438,2]